bitfinex/quotes_BTCUSD_20250316
["timestamp","ask_amount","ask_price","bid_price","bid_amount"]
[1742117366557,0.00820114,84180.0,84179.0,0.4069964]
[1742117366710,0.02771587,84180.0,84179.0,0.4069964]
[1742117366920,0.00075283,84180.0,84179.0,0.4069964]
[1742117367476,0.02771587,84180.0,84179.0,0.4069964]
[1742117367671,0.00075283,84180.0,84179.0,0.4069964]
[1742117368653,0.00075283,84180.0,84179.0,0.3951174]
[1742117368871,0.00075283,84180.0,84179.0,0.4069964]
[1742117370176,0.02771587,84180.0,84179.0,0.4069964]
[1742117370425,0.00075283,84180.0,84179.0,0.4069964]
[1742117370603,0.02771587,84180.0,84179.0,0.4069964]
[1742117370804,0.00075283,84180.0,84179.0,0.4069964]
[1742117371007,0.02771587,84180.0,84179.0,0.4069964]
[1742117371216,0.00075283,84180.0,84179.0,0.4069964]
[1742117371415,0.02771587,84180.0,84179.0,0.4069964]
[1742117371580,0.00075283,84180.0,84179.0,0.4069964]
[1742117371785,0.00075283,84180.0,84179.0,0.0031694]
[1742117371972,0.35688087,84180.0,84179.0,0.0031694]
[1742117372202,0.32991783,84180.0,84179.0,0.0031694]
[1742117372362,0.35689268,84180.0,84179.0,0.0031694]
[1742117373540,0.65689268,84180.0,84179.0,0.0031694]
[1742117374052,0.65531868,84180.0,84179.0,0.0031694]
[1742117377987,0.65565748,84180.0,84179.0,0.0031694]
[1742117378588,0.57595748,84180.0,84179.0,0.0031694]
[1742117386700,0.56489965,84180.0,84179.0,0.0031694]
[1742117389447,0.32731365,84180.0,84179.0,0.2526364]
[1742117391024,0.02731365,84180.0,84179.0,0.2526364]
[1742117391389,0.0003388,84180.0,84179.0,0.2526364]
[1742117399352,0.0003388,84180.0,84179.0,1.7526364]
[1742117399771,0.0003388,84180.0,84179.0,1.94791143]
[1742117400045,8e-07,84180.0,84179.0,1.99381143]
[1742117400412,8e-07,84180.0,84179.0,1.99581143]
[1742117400679,8e-07,84180.0,84179.0,1.99481143]
[1742117401253,8e-07,84180.0,84179.0,1.99281143]
[1742117401595,8e-07,84180.0,84179.0,1.99681143]
[1742117401796,8e-07,84180.0,84179.0,1.99281143]
[1742117402002,8e-07,84180.0,84179.0,2.01644945]
[1742117402211,8e-07,84180.0,84179.0,2.02644945]
[1742117402965,8e-07,84180.0,84179.0,2.02144945]
[1742117403286,8e-07,84180.0,84179.0,2.02744945]
[1742117406498,8e-07,84180.0,84179.0,1.90384945]
[1742117406918,8e-07,84180.0,84179.0,0.43103442]
[1742117407960,8e-07,84180.0,84179.0,0.2606364]
[1742117408132,8e-07,84180.0,84179.0,0.4072764]
[1742117408765,8e-07,84180.0,84179.0,0.1578094]
[1742117408967,8e-07,84180.0,84179.0,0.4072764]
[1742117409869,8e-07,84180.0,84179.0,0.4012764]
[1742117410047,8e-07,84180.0,84179.0,0.3962764]
[1742117410445,8e-07,84180.0,84179.0,0.4032764]
[1742117412294,8e-07,84180.0,84179.0,0.4027964]
[1742117413888,8e-07,84180.0,84179.0,0.52237143]
[1742117414090,8e-07,84180.0,84179.0,0.65317143]
[1742117414493,8e-07,84180.0,84179.0,2.15317143]
[1742117415096,8e-07,84180.0,84179.0,2.14917143]
[1742117415289,8e-07,84180.0,84179.0,2.15517143]
[1742117416112,8e-07,84180.0,84179.0,2.16671228]
[1742117416514,8e-07,84180.0,84179.0,2.17271228]
[1742117417866,8e-07,84180.0,84179.0,2.22771228]
[1742117418067,6e-07,84192.0,84191.0,0.380232]
[1742117418208,6e-07,84192.0,84191.0,0.51934788]
[1742117418437,6e-07,84192.0,84191.0,0.56934788]
[1742117418862,6e-07,84192.0,84191.0,2.06934788]
[1742117419809,6e-07,84192.0,84191.0,2.07534788]
[1742117420545,6e-07,84192.0,84191.0,2.08134788]
[1742117421348,0.000339,84201.0,84191.0,2.08134788]
[1742117421349,6e-07,84201.0,84200.0,0.249405]
[1742117421525,6e-07,84201.0,84200.0,0.66590088]
[1742117421853,6e-07,84201.0,84200.0,0.71460088]
[1742117422880,6e-07,84201.0,84200.0,0.72560088]
[1742117423389,6e-07,84201.0,84200.0,0.72060088]
[1742117423592,6e-07,84201.0,84200.0,0.72660088]
[1742117423939,6e-07,84201.0,84200.0,0.73850286]
[1742117424140,6e-07,84201.0,84200.0,0.73250286]
[1742117424340,6e-07,84201.0,84200.0,0.73850286]
[1742117424954,6e-07,84201.0,84200.0,0.73250286]
[1742117425160,6e-07,84201.0,84200.0,0.73850286]
[1742117425590,6e-07,84201.0,84200.0,2.23850286]
[1742117426366,6e-07,84201.0,84200.0,2.23250286]
[1742117427120,6e-07,84201.0,84200.0,2.23850286]
[1742117427322,6e-07,84201.0,84200.0,2.22650286]
[1742117427467,6e-07,84201.0,84200.0,2.23850286]
[1742117427920,6e-07,84201.0,84200.0,2.99250286]
[1742117428277,4e-07,84214.0,84213.0,0.324667]
[1742117428476,4e-07,84214.0,84213.0,0.45878288]
[1742117429718,4e-07,84214.0,84213.0,0.52812288]
[1742117430754,4e-07,84214.0,84213.0,0.53412288]
[1742117431017,4e-07,84214.0,84213.0,0.54012288]
[1742117431696,4e-07,84214.0,84213.0,0.40520331]
[1742117431895,4e-07,84214.0,84213.0,0.28562828]
[1742117432111,4e-07,84214.0,84213.0,0.43014828]
[1742117432269,4e-07,84214.0,84213.0,0.405887]
[1742117432665,4e-07,84214.0,84213.0,1.159807]
[1742117433434,4e-07,84214.0,84213.0,1.153807]
[1742117433553,4e-07,84214.0,84213.0,1.147607]
[1742117433919,4e-07,84214.0,84213.0,1.157607]
[1742117434272,4e-07,84214.0,84213.0,1.1577763]
[1742117435578,4e-07,84214.0,84213.0,1.27735133]
[1742117436191,4e-07,84214.0,84213.0,2.77735133]
[1742117440723,4e-07,84214.0,84213.0,2.63303133]
[1742117440929,4e-07,84214.0,84213.0,2.77711133]
[1742117442186,4e-07,84214.0,84213.0,2.63303133]
[1742117442397,4e-07,84214.0,84213.0,2.79153218]
[1742117443506,4e-07,84214.0,84213.0,2.78153218]
[1742117443738,4e-07,84214.0,84213.0,2.78753218]
[1742117443918,4e-07,84214.0,84213.0,2.79353218]
[1742117444125,4e-07,84214.0,84213.0,2.88153218]
[1742117445238,4e-07,84222.0,84221.0,0.249343]
[1742117445537,4e-07,84222.0,84221.0,0.38345888]
[1742117446303,4e-07,84222.0,84221.0,0.52693888]
[1742117447111,4e-07,84222.0,84221.0,0.53893888]
[1742117449144,4e-07,84222.0,84221.0,2.03893888]
[1742117454834,4e-07,84222.0,84221.0,2.04393888]
[1742117457592,4e-07,84222.0,84221.0,2.04410818]
[1742117460338,4e-07,84222.0,84221.0,1.89562818]
[1742117460543,4e-07,84222.0,84221.0,2.02324733]
[1742117461196,4e-07,84222.0,84221.0,1.88108733]
[1742117461397,4e-07,84222.0,84221.0,1.9036323]
[1742117462456,4e-07,84222.0,84221.0,1.8976323]
[1742117462615,4e-07,84222.0,84221.0,1.9036323]
[1742117462968,4e-07,84222.0,84221.0,1.8976323]
[1742117463165,4e-07,84222.0,84221.0,1.9026323]
[1742117468663,4e-07,84222.0,84221.0,2.02220733]
[1742117469707,4e-07,84222.0,84221.0,2.01620733]
[1742117470018,4e-07,84222.0,84221.0,2.01720733]
[1742117470421,4e-07,84222.0,84221.0,1.88108733]
[1742117470616,4e-07,84222.0,84221.0,2.02276733]
[1742117471247,4e-07,84222.0,84221.0,2.77656733]
[1742117472940,4e-07,84222.0,84221.0,2.6567923]
[1742117474341,4e-07,84222.0,84221.0,2.6507923]
[1742117474600,4e-07,84222.0,84221.0,2.6557923]
[1742117474830,4e-07,84222.0,84221.0,2.6496723]
[1742117475338,4e-07,84222.0,84221.0,2.6556723]
[1742117476914,4e-07,84222.0,84221.0,1.1556723]
[1742117477530,4e-07,84222.0,84221.0,2.6556723]
[1742117483620,4e-07,84222.0,84221.0,2.5143123]
[1742117483842,4e-07,84222.0,84221.0,2.6551523]
[1742117489015,4e-07,84222.0,84221.0,1.0143123]
[1742117489214,4e-07,84222.0,84221.0,1.1549523]
[1742117490434,4e-07,84222.0,84221.0,1.1439523]
[1742117490602,4e-07,84222.0,84221.0,1.1469523]
[1742117490952,4e-07,84222.0,84221.0,1.1509523]
[1742117491241,4e-07,84222.0,84221.0,1.1469523]
[1742117491595,4e-07,84222.0,84221.0,1.1509523]
[1742117493866,4e-07,84222.0,84221.0,1.0103123]
[1742117494067,4e-07,84222.0,84221.0,1.1506723]
[1742117494482,0.02725435,84222.0,84221.0,1.1506723]
[1742117494658,4e-07,84222.0,84221.0,1.1506723]
[1742117494863,0.02725435,84222.0,84221.0,1.1505923]
[1742117496459,4e-07,84222.0,84221.0,1.1505923]
[1742117497004,4e-07,84222.0,84221.0,0.7609693]
[1742117497338,0.67742769,84222.0,84221.0,0.7609693]
[1742117497516,0.70340915,84222.0,84221.0,0.7609693]
[1742117497952,1.12030915,84222.0,84221.0,0.7579693]
[1742117498155,1.12030915,84222.0,84221.0,0.0001693]
[1742117498456,1.12030915,84222.0,84221.0,0.0021693]
[1742117498737,1.13220151,84222.0,84221.0,0.0021693]
[1742117499497,1.13220151,84222.0,84221.0,0.0031693]
[1742117499683,1.13220151,84222.0,84221.0,0.0001693]
[1742117500480,1.15081364,84222.0,84221.0,0.0001693]
[1742117508687,1.13220151,84222.0,84221.0,0.0001693]
[1742117511901,1.15081342,84222.0,84221.0,0.0001693]
[1742117524192,1.13220151,84222.0,84221.0,0.0001693]
[1742117526135,1.13420151,84222.0,84221.0,0.0001693]
[1742117531535,1.1528151,84222.0,84221.0,0.0001693]
[1742117532154,1.16152822,84222.0,84221.0,0.0001693]
[1742117533821,1.17606907,84222.0,84221.0,0.0001693]
[1742117533936,1.17606907,84222.0,84221.0,3e-07]
[1742117535406,1.17406907,84222.0,84221.0,3e-07]
[1742117535607,1.17906907,84222.0,84221.0,3e-07]
[1742117536700,1.16045548,84222.0,84221.0,3e-07]
[1742117537050,1.29901548,84222.0,84221.0,3e-07]
[1742117537655,1.28447463,84222.0,84221.0,3e-07]
[1742117538466,1.2795037,84222.0,84221.0,3e-07]
[1742117539875,1.29811739,84222.0,84221.0,3e-07]
[1742117541209,1.2795037,84222.0,84221.0,3e-07]
[1742117545036,1.1409437,84222.0,84221.0,3e-07]
[1742117545236,1.15955748,84222.0,84221.0,3e-07]
[1742117545690,1.17409833,84222.0,84221.0,3e-07]
[1742117546544,1.15548455,84222.0,84221.0,3e-07]
[1742117553714,0.537557,84190.0,84189.0,0.0386496]
[1742117553915,0.537557,84190.0,84188.0,0.237562]
[1742117553916,0.3,84189.0,84188.0,0.237562]
[1742117554930,4.138e-05,84189.0,84188.0,0.237562]
[1742117555129,4.138e-05,84189.0,84188.0,0.240562]
[1742117555401,0.25066667,84189.0,84188.0,0.003]
[1742117555610,0.24947938,84189.0,84188.0,0.003]
[1742117555780,0.24947938,84189.0,84188.0,0.007]
[1742117556599,0.24947938,84189.0,84188.0,0.004]
[1742117556796,0.24947938,84189.0,84188.0,0.005]
[1742117556956,0.26408731,84189.0,84188.0,0.005]
[1742117557156,0.26408731,84189.0,84188.0,0.001]
[1742117557383,0.26408731,84189.0,84188.0,0.002]
[1742117557677,0.27207033,84189.0,84188.0,0.002]
[1742117559115,0.98897033,84189.0,84188.0,0.002]
[1742117559561,0.98897033,84189.0,84188.0,0.001]
[1742117559731,0.98897033,84189.0,84188.0,0.0011694]
[1742117560944,0.98997033,84189.0,84188.0,0.0001694]
[1742117562441,1.06737033,84189.0,84188.0,0.0001694]
[1742117563917,1.08599118,84189.0,84188.0,0.0001694]
[1742117564222,1.08799118,84189.0,84188.0,0.0001694]
[1742117564441,1.08699118,84189.0,84188.0,0.0001694]
[1742117564635,1.08999118,84189.0,84188.0,0.0001694]
[1742117567041,1.07137033,84189.0,84188.0,0.0001694]
[1742117569149,0.99397033,84189.0,84188.0,0.0001694]
[1742117570295,1.01259132,84189.0,84188.0,0.0001694]
[1742117571478,1.01293012,84189.0,84188.0,0.0001694]
[1742117577608,1.08913012,84189.0,84188.0,0.0001694]
[1742117577811,1.10367097,84189.0,84188.0,0.0001694]
[1742117578676,1.08504998,84189.0,84188.0,4e-07]
[1742117578897,1.08204998,84189.0,84188.0,4e-07]
[1742117579253,1.08704998,84189.0,84188.0,4e-07]
[1742117579937,1.08504998,84189.0,84188.0,4e-07]
[1742117580130,1.08804998,84189.0,84188.0,4e-07]
[1742117580655,1.09304998,84189.0,84188.0,4e-07]
[1742117582073,1.11167294,84189.0,84188.0,4e-07]
[1742117584452,1.13497129,84189.0,84188.0,4e-07]
[1742117585478,0.011879,84180.0,84179.0,0.0001694]
[1742117585680,0.01306629,84180.0,84179.0,0.0001694]
[1742117585887,0.58789307,84180.0,84179.0,0.0001694]
[1742117586084,0.57209994,84180.0,84179.0,0.0001694]
[1742117586450,0.59072251,84180.0,84179.0,0.0001694]
[1742117586806,0.59372251,84180.0,84179.0,0.0001694]
[1742117587142,0.60832835,84180.0,84179.0,0.0001694]
[1742117587998,0.61132835,84180.0,84179.0,0.0001694]
[1742117588702,0.59270578,84180.0,84179.0,0.0001694]
[1742117589124,0.66890578,84180.0,84179.0,0.0001694]
[1742117589326,0.71800578,84180.0,84179.0,0.0001694]
[1742117589736,1.13490538,84180.0,84179.0,0.0001694]
[1742117590620,1.13490538,84180.0,84178.0,0.0001694]
[1742117590621,0.56400785,84179.0,84178.0,8e-07]
[1742117590931,0.58669072,84179.0,84178.0,8e-07]
[1742117591221,0.66289072,84179.0,84178.0,8e-07]
[1742117591807,0.66289072,84179.0,84151.0,0.00017009]
[1742117591808,0.549548,84152.0,84151.0,0.00017009]
[1742117592008,0.9664468,84152.0,84151.0,0.00017009]
[1742117592214,0.97825051,84152.0,84151.0,0.00017009]
[1742117593024,0.97825051,84152.0,84151.0,0.00217009]
[1742117593228,0.99687531,84152.0,84151.0,0.00558412]
[1742117593665,0.99687531,84152.0,84151.0,0.00258412]
[1742117594067,0.97825051,84152.0,84151.0,0.00258412]
[1742117594268,0.97825051,84152.0,84151.0,0.00058412]
[1742117594486,0.98627513,84152.0,84151.0,0.00058412]
[1742117595571,0.98627513,84152.0,84151.0,0.00258412]
[1742117596221,0.98627513,84152.0,84151.0,0.00058412]
[1742117596777,0.96258842,84152.0,84151.0,0.00058412]
[1742117597012,0.3,84148.0,84147.0,0.02488412]
[1742117597229,0.30796579,84148.0,84147.0,1.76264628]
[1742117597426,0.30796579,84148.0,84147.0,0.26264628]
[1742117597704,0.30796579,84148.0,84147.0,0.02496728]
[1742117597862,0.54564179,84148.0,84147.0,0.02496728]
[1742117598341,0.54564179,84148.0,84147.0,0.02596728]
[1742117598549,0.55752479,84148.0,84147.0,0.02596728]
[1742117598754,0.55752479,84148.0,84147.0,0.00108316]
[1742117602215,0.57204281,84148.0,84147.0,0.00108316]
[1742117603504,0.02248381,84148.0,84147.0,0.00108316]
[1742117603833,0.26015981,84148.0,84147.0,0.00108316]
[1742117606500,0.02248381,84148.0,84147.0,0.00108316]
[1742117606706,0.02248381,84148.0,84147.0,0.00125266]
[1742117607405,0.56015981,84148.0,84147.0,0.00125266]
[1742117607553,0.32248381,84148.0,84147.0,0.00125266]
[1742117607759,0.32248381,84148.0,84147.0,0.23893166]
[1742117608115,0.5562965,84148.0,84147.0,0.00125266]
[1742117608994,0.3186205,84148.0,84147.0,0.00125266]
[1742117609171,0.3186205,84148.0,84147.0,0.23893166]
[1742117609573,0.3186205,84148.0,84147.0,0.25081466]
[1742117609759,0.3186205,84148.0,84147.0,0.00125266]
[1742117609960,0.3186205,84148.0,84147.0,0.23893166]
[1742117610164,0.3186205,84148.0,84147.0,0.25081466]
[1742117610662,0.0186205,84148.0,84147.0,0.25081466]
[1742117611150,0.01561168,84148.0,84147.0,0.25081466]
[1742117613183,0.000339,84152.0,84151.0,0.249551]
[1742117614400,0.5,84326.0,84185.0,0.24945]
[1742117614401,0.4168988,84186.0,84185.0,0.24945]
[1742117614536,0.011876,84199.0,84188.0,0.249441]
[1742117614736,0.01862223,84191.0,84188.0,0.249441]
[1742117615654,0.01862223,84191.0,84188.0,0.248441]
[1742117615857,0.00075283,84189.0,84188.0,0.248441]
[1742117616931,0.00175283,84189.0,84188.0,0.248441]
[1742117617126,0.00375283,84189.0,84188.0,0.248441]
[1742117617349,0.00275283,84189.0,84188.0,0.248441]
[1742117617756,0.00075283,84189.0,84188.0,0.248441]
[1742117620501,0.00075283,84189.0,84188.0,0.249441]
[1742117620872,0.00075283,84189.0,84188.0,0.248441]
[1742117621075,0.00075283,84189.0,84188.0,0.254441]
[1742117621661,0.00175283,84189.0,84188.0,0.248441]
[1742117621866,0.00075283,84189.0,84188.0,0.254441]
[1742117622318,0.00175283,84189.0,84188.0,0.254441]
[1742117623777,0.00175283,84189.0,84188.0,0.248441]
[1742117624156,0.00175283,84189.0,84188.0,0.254441]
[1742117630164,0.00175283,84189.0,84188.0,0.2546105]
[1742117632059,0.00175283,84189.0,84188.0,1.7546105]
[1742117634713,0.00175283,84189.0,84188.0,2.5088505]
[1742117641722,0.00175283,84189.0,84188.0,2.62842553]
[1742117645011,0.00175283,84189.0,84188.0,2.5088505]
[1742117647799,0.00175283,84189.0,84188.0,1.0088505]
[1742117648008,0.00175283,84189.0,84188.0,1.1442905]
[1742117650378,0.00175283,84189.0,84188.0,1.1325325]
[1742117650548,0.00175283,84189.0,84188.0,1.1444105]
[1742117651154,0.00075283,84189.0,84188.0,1.1384105]
[1742117651309,0.00075283,84189.0,84188.0,1.1444105]
[1742117651837,0.00075283,84189.0,84188.0,1.1384905]
[1742117652328,0.00075283,84189.0,84188.0,1.1444905]
[1742117654959,0.00075283,84189.0,84188.0,2.6444905]
[1742117656624,0.00075283,84189.0,84188.0,1.1444905]
[1742117661910,0.00075283,84189.0,84188.0,1.26406553]
[1742117662472,0.00075283,84189.0,84188.0,2.76406553]
[1742117667504,0.00075283,84189.0,84188.0,2.76406553]
[1742117667638,8.3e-07,84189.0,84188.0,2.76406553]
[1742117667837,8.3e-07,84189.0,84188.0,2.84026553]
[1742117668545,8.3e-07,84189.0,84188.0,2.83426553]
[1742117668881,0.00100083,84189.0,84188.0,2.83426553]
[1742117669282,0.00200083,84189.0,84188.0,2.83426553]
[1742117670108,0.00200083,84189.0,84188.0,2.84026553]
[1742117670727,0.00200083,84189.0,84188.0,2.83426553]
[1742117671105,0.00200083,84189.0,84188.0,2.84026553]
[1742117674758,0.00233963,84189.0,84188.0,2.76406553]
[1742117674954,0.00233963,84189.0,84188.0,1.0088505]
[1742117675163,0.00233963,84189.0,84188.0,1.1439305]
[1742117675565,0.00233963,84189.0,84188.0,1.0088505]
[1742117675808,0.00233963,84189.0,84188.0,1.1439305]
[1742117677044,0.00233963,84189.0,84188.0,1.1379305]
[1742117677243,0.00233963,84189.0,84188.0,1.1439305]
[1742117678086,0.00033963,84189.0,84188.0,1.1439305]
[1742117678297,0.00133963,84189.0,84188.0,1.1489305]
[1742117679524,0.00133963,84189.0,84188.0,2.6489305]
[1742117681666,0.00133963,84189.0,84188.0,2.76850553]
[1742117684553,0.0464,84205.0,84204.0,0.249393]
[1742117684554,0.04357587,84205.0,84204.0,0.249393]
[1742117684781,0.05675539,84205.0,84204.0,0.249393]
[1742117684978,0.35675539,84205.0,84204.0,0.249393]
[1742117686132,0.35675539,84205.0,84204.0,0.253393]
[1742117693667,0.35675539,84205.0,84204.0,0.241518]
[1742117694646,0.35675539,84205.0,84204.0,0.253393]
[1742117695656,0.35675539,84205.0,84204.0,0.241518]
[1742117698174,0.35675539,84205.0,84204.0,0.2416873]
[1742117698390,0.35709399,84205.0,84204.0,0.2535623]
[1742117701921,0.35709399,84205.0,84204.0,0.0041693]
[1742117702235,0.59460899,84205.0,84204.0,0.0041693]
[1742117702689,0.68858399,84205.0,84204.0,0.0041693]
[1742117706965,0.70719918,84205.0,84204.0,0.0041693]
[1742117711522,0.68858399,84205.0,84204.0,0.0041693]
[1742117714945,0.70719905,84205.0,84204.0,0.0041693]
[1742117715991,0.68858399,84205.0,84204.0,0.0041693]
[1742117719374,0.70719914,84205.0,84204.0,0.0041693]
[1742117720416,0.68858399,84205.0,84204.0,0.0041693]
[1742117723632,0.70719911,84205.0,84204.0,0.0041693]
[1742117725405,0.45780911,84205.0,84204.0,0.2416873]
[1742117725574,0.07570911,84205.0,84204.0,0.2535623]
[1742117726496,0.32509911,84205.0,84204.0,0.0041693]
[1742117726967,0.07570911,84205.0,84204.0,0.0041693]
[1742117727411,0.07570911,84205.0,84204.0,0.2416873]
[1742117729381,0.07570911,84205.0,84204.0,0.0041693]
[1742117729746,0.07570911,84205.0,84204.0,0.2416873]
[1742117729947,0.07570911,84205.0,84204.0,0.0041693]
[1742117731024,0.31322411,84205.0,84204.0,0.0041693]
[1742117731166,0.07570911,84205.0,84204.0,0.0041693]
[1742117731373,0.31322411,84205.0,84204.0,0.0041693]
[1742117731545,0.07570911,84205.0,84204.0,0.0041693]
[1742117731746,0.07570911,84205.0,84204.0,0.2416873]
[1742117731940,0.08673704,84205.0,84204.0,0.0041693]
[1742117732147,0.08673704,84205.0,84204.0,0.2416873]
[1742117734580,0.08673704,84205.0,84204.0,0.2535623]
[1742117734802,0.04316117,84205.0,84204.0,0.2535623]
[1742117740409,0.04316117,84205.0,84204.0,0.2416873]
[1742117743508,0.28067617,84205.0,84204.0,0.0041693]
[1742117743968,0.42305117,84205.0,84204.0,0.0041693]
[1742117753952,0.42305117,84205.0,84204.0,0.00199752]
[1742117754763,0.44521624,84205.0,84204.0,0.00199752]
[1742117755795,0.42305117,84205.0,84204.0,0.00199752]
[1742117757685,0.72305117,84205.0,84204.0,0.00199752]
[1742117758129,0.70443605,84205.0,84204.0,0.00199752]
[1742117758334,0.70443605,84205.0,84204.0,0.0001693]
[1742117758578,0.72659755,84205.0,84204.0,0.0011693]
[1742117758798,0.72659755,84205.0,84204.0,0.0001693]
[1742117759183,0.72859755,84205.0,84204.0,0.0001693]
[1742117760067,0.73159755,84205.0,84204.0,0.0001693]
[1742117760274,0.70943605,84205.0,84204.0,0.0001693]
[1742117761560,1.1449519,84205.0,84204.0,0.0001693]
[1742117762582,1.12633485,84205.0,84204.0,0.0001693]
[1742117762994,1.14847415,84205.0,84204.0,0.0001693]
[1742117766870,1.1670916,84205.0,84204.0,0.0001693]
[1742117771172,1.14847415,84205.0,84204.0,0.0001693]
[1742117771386,1.34847415,84205.0,84204.0,0.0001693]
[1742117774471,1.36709099,84205.0,84204.0,0.0001693]
[1742117775404,1.34847415,84205.0,84204.0,0.0001693]
[1742117783103,1.28519073,84205.0,84204.0,0.0001693]
[1742117783320,0.98720073,84205.0,84204.0,0.0001693]
[1742117783526,0.66858415,84205.0,84204.0,0.2495623]
[1742117783732,0.96858415,84205.0,84204.0,0.2495623]
[1742117783944,0.96858415,84205.0,84204.0,0.0001693]
[1742117784153,0.96558415,84205.0,84204.0,0.2376873]
[1742117784364,0.94344485,84205.0,84204.0,0.2376873]
[1742117784588,0.94444485,84205.0,84204.0,0.2376873]
[1742117784800,0.22754605,84205.0,84204.0,0.2495623]
[1742117785241,0.22554605,84205.0,84204.0,0.2495623]
[1742117785661,0.52554605,84205.0,84204.0,0.2495623]
[1742117785913,0.52454605,84205.0,84204.0,0.2495623]
[1742117786113,0.52454605,84205.0,84204.0,0.2525623]
[1742117786318,0.52454605,84205.0,84204.0,0.2545623]
[1742117787543,0.52454605,84205.0,84204.0,0.2426873]
[1742117787754,0.52454605,84205.0,84204.0,0.0051693]
[1742117787961,0.52454605,84205.0,84204.0,0.2426873]
[1742117788994,0.52454605,84205.0,84204.0,0.25356054]
[1742117789215,0.52454605,84205.0,84204.0,0.24168554]
[1742117789427,0.78418276,84205.0,84204.0,0.00416754]
[1742117790049,0.78418276,84205.0,84204.0,0.00433684]
[1742117790506,0.79605776,84205.0,84204.0,0.00433684]
[1742117792213,0.79605776,84205.0,84204.0,0.00233684]
[1742117792429,1.26185656,84205.0,84204.0,0.00333684]
[1742117792630,1.26185656,84205.0,84204.0,0.0011693]
[1742117793792,1.26185656,84205.0,84204.0,0.0001693]
[1742117795687,1.28047241,84205.0,84204.0,0.0001693]
[1742117796076,1.26185656,84205.0,84204.0,0.0001693]
[1742117797040,1.21295656,84205.0,84204.0,0.0001693]
[1742117798660,1.23157268,84205.0,84204.0,0.0001693]
[1742117800312,1.21295656,84205.0,84204.0,0.0001693]
[1742117802008,1.34315656,84205.0,84204.0,0.0001693]
[1742117803231,1.34515656,84205.0,84204.0,0.0001693]
[1742117803616,1.36377356,84205.0,84204.0,0.0001693]
[1742117804225,1.36577356,84205.0,84204.0,0.0001693]
[1742117807629,1.34715656,84205.0,84204.0,0.0001693]
[1742117815591,1.36577332,84205.0,84204.0,0.0001693]
[1742117821959,1.34715656,84205.0,84204.0,0.0001693]
[1742117822389,1.34515656,84205.0,84204.0,0.0001693]
[1742117822600,1.34315656,84205.0,84204.0,0.0001693]
[1742117822812,1.35115656,84205.0,84204.0,0.0001693]
[1742117823052,1.48587656,84205.0,84204.0,0.0001693]
[1742117823783,1.48087656,84205.0,84204.0,0.0001693]
[1742117824166,1.48487656,84205.0,84204.0,0.0001693]
[1742117824696,1.48187656,84205.0,84204.0,0.0001693]
[1742117825053,1.48687656,84205.0,84204.0,0.0001693]
[1742117826486,1.50549519,84205.0,84204.0,0.0001693]
[1742117828055,1.50549519,84205.0,84204.0,3e-07]
[1742117828259,1.48687656,84205.0,84204.0,3e-07]
[1742117829022,1.48691656,84205.0,84204.0,3e-07]
[1742117829231,1.48191656,84205.0,84204.0,3e-07]
[1742117829432,1.47791656,84205.0,84204.0,3e-07]
[1742117829651,1.48291656,84205.0,84204.0,3e-07]
[1742117829876,0.011878,84189.0,84188.0,0.0001695]
[1742117830090,0.549438,84189.0,84188.0,0.0001695]
[1742117830300,0.57330592,84189.0,84188.0,0.0001695]
[1742117830497,0.59542763,84189.0,84188.0,0.0001695]
[1742117831490,0.59742763,84189.0,84188.0,0.0001695]
[1742117832098,0.59842763,84189.0,84188.0,0.0001695]
[1742117833387,0.34898963,84189.0,84188.0,0.0001695]
[1742117833711,0.59842763,84189.0,84188.0,0.0001695]
[1742117835121,0.34898963,84189.0,84188.0,0.0001695]
[1742117835697,0.34898963,84189.0,84188.0,0.2377325]
[1742117836651,0.34598963,84189.0,84188.0,0.2377325]
[1742117839153,0.34598963,84189.0,84188.0,0.0011695]
[1742117839994,0.58354963,84189.0,84188.0,0.0011695]
[1742117840208,0.59542763,84189.0,84188.0,0.0011695]
[1742117843922,0.59542763,84189.0,84188.0,0.0011695]
[1742117844753,0.61404601,84189.0,84188.0,0.0011695]
[1742117848330,0.36460801,84189.0,84188.0,0.2387325]
[1742117848535,0.3424863,84189.0,84188.0,0.2387325]
[1742117849112,0.3424863,84189.0,84188.0,0.2506105]
[1742117849687,0.3424863,84189.0,84188.0,0.2387325]
[1742117849893,0.3424863,84189.0,84188.0,0.2506105]
[1742117850273,0.3424863,84189.0,84188.0,0.2387325]
[1742117851828,0.32386792,84189.0,84188.0,0.2387325]
[1742117853909,0.32386792,84189.0,84188.0,0.2506105]
[1742117854085,0.32386792,84189.0,84188.0,0.2387325]
[1742117855066,0.32386792,84189.0,84188.0,0.2506105]
[1742117855210,0.34248586,84189.0,84188.0,0.2506105]
[1742117856201,0.32386792,84189.0,84188.0,0.2506105]
[1742117859007,0.3262714,84189.0,84188.0,0.2506105]
[1742117861083,0.34488927,84189.0,84188.0,0.2506105]
[1742117861737,0.34488927,84189.0,84188.0,0.2387325]
[1742117867390,0.34488927,84189.0,84188.0,0.2506105]
[1742117869341,0.34488927,84189.0,84188.0,0.2387325]
[1742117873876,0.34488927,84189.0,84188.0,0.2506105]
[1742117874410,0.36706118,84189.0,84188.0,0.2506105]
[1742117876004,0.34488927,84189.0,84188.0,0.2506105]
[1742117880680,0.54488927,84189.0,84188.0,0.2506105]
[1742117881021,0.54488927,84189.0,84188.0,0.2387325]
[1742117882550,0.54488927,84189.0,84188.0,0.0011695]
[1742117882769,0.79432727,84189.0,84188.0,0.0011695]
[1742117882955,0.78244927,84189.0,84188.0,0.0011695]
[1742117883226,0.54488927,84189.0,84188.0,0.0011695]
[1742117884220,0.78244927,84189.0,84188.0,0.0011695]
[1742117884892,0.79432727,84189.0,84188.0,0.0011695]
[1742117885094,0.87502727,84189.0,84188.0,0.0011695]
[1742117885314,0.8564094,84189.0,84188.0,0.0011695]
[1742117886456,0.91406147,84189.0,84188.0,0.0011695]
[1742117888713,0.93268074,84189.0,84188.0,0.0011695]
[1742117889541,0.91406147,84189.0,84188.0,0.0011695]
[1742117889922,0.87858327,84189.0,84188.0,0.0011695]
[1742117892487,0.8564094,84189.0,84188.0,0.0011695]
[1742117893905,0.81910618,84189.0,84188.0,0.0011695]
[1742117895339,0.84127374,84189.0,84188.0,0.0011695]
[1742117896104,0.85989301,84189.0,84188.0,0.0011695]
[1742117897386,0.83772545,84189.0,84188.0,0.0011695]
[1742117899890,0.85989219,84189.0,84188.0,0.0011695]
[1742117903282,0.86189219,84189.0,84188.0,0.0001695]
[1742117903640,0.86389219,84189.0,84188.0,0.0001695]
[1742117905438,1.28112979,84189.0,84188.0,0.0001695]
[1742117906309,1.31659799,84189.0,84188.0,0.0001695]
[1742117907426,1.34397872,84189.0,84188.0,0.0001695]
[1742117909628,1.34407872,84189.0,84188.0,0.00024767]
[1742117909897,1.34390057,84189.0,84188.0,0.00024767]